fUSD/lending_fUSD_20240125
["ID","MTS","AMOUNT","RATE_DAILY","PERIOD"]
[312731226,1706189514939,-2137.77,0.000665,120]
[312731227,1706189514948,-2667.12,0.000665,120]
[312731228,1706189514957,-2362.19,0.000665,120]
[312731229,1706189514966,-151.0,0.000665,120]
[312731230,1706189514976,-79105.86711202,0.000666,60]
[312731231,1706189515070,-1340.55421316,0.000666,60]
[312731232,1706189515082,-1039.9999,0.000666,60]
[312731233,1706189515093,-3924.53627189,0.000666,60]
[312731234,1706189515108,-613.99421483,0.000666,60]
[312731235,1706189515120,-5631.3,0.000666,60]
[312731236,1706189515153,-1448.32,0.00052054,31]
[312731237,1706189515162,-445.57172587,0.000666,60]
[312731238,1706189515173,-2749.18501419,0.000666,60]
[312731239,1706189515202,-3764953.96962534,0.000666,60]
[312731240,1706189515214,-1698.03735021,0.000666,60]
[312731241,1706189515225,-2881.14072577,0.000666,60]
[312731242,1706189515236,-1099.50355633,0.000666,60]
[312731243,1706189515247,-1950.40470994,0.000666,60]
[312731244,1706189515258,-4483.73346267,0.000666,60]
[312731245,1706189515464,-264.64758707,0.00045316,7]
[312731246,1706189515476,-241.35241293,0.00045316,7]
[312731247,1706189515486,-2306.89,0.00049315,31]
[312731248,1706189515496,-500.0,0.00049315,31]
[312731249,1706189515506,-1791.75758707,0.00049589,31]
[312731250,1706189515523,-515.13241293,0.00049589,31]
[312731251,1706189515533,-512.2,0.00049589,31]
[312731252,1706189515543,-726.71,0.00049863,31]
[312731253,1706189515552,-410.46864698,0.00049863,31]
[312731254,1706189515565,-534.8719907,0.00049863,31]
[312731255,1706189515579,-938.032615,0.00049863,31]
[312731256,1706189515590,-423.51674732,0.00049863,31]
[312731257,1706189515599,-274.70101468,0.00050136,31]
[312731258,1706189515612,-452.00898532,0.00050136,31]
[312731259,1706189515623,-16.14757713,0.00050136,31]
[312731260,1706189515637,-501.9,0.00050136,31]
[312731261,1706189515653,-1066.32182804,0.00050136,31]
[312731262,1706189515667,-499.63199752,0.00050136,31]
[312731263,1706189515679,-222.88859731,0.00050136,31]
[312731264,1706189515689,-726.71,0.0005041,31]
[312731265,1706189515699,-726.71,0.00050684,31]
[312731266,1706189515710,-500.0,0.00052328,31]
[312731267,1706189515721,-709.90701882,0.00052328,31]
[312731268,1706189515735,-738.41298118,0.00052328,31]
[312731269,1706189515746,-500.0,0.00052602,31]
[312731270,1706189515755,-824.1832548,0.00052602,31]
[312731271,1706189515767,-355.87695607,0.00052602,31]
[312731272,1706189515778,-268.25978913,0.00052602,31]
[312731273,1706189515787,-251.87165459,0.00052876,31]
[312731274,1706189515800,-248.12834541,0.00052876,31]
[312731275,1706189515809,-1448.32,0.00052876,31]
[312731276,1706189515820,-500.0,0.0005315,31]
[312731277,1706189515829,-1448.32,0.0005315,31]
[312731278,1706189515839,-500.0,0.00053424,31]
[312731279,1706189515848,-9437.00186175,0.000666,60]
[312731280,1706189515863,-282.36462342,0.000666,60]
[312731281,1706189515874,-41512.65770557,0.000666,60]
[312731282,1706189515885,-32667.25841742,0.000666,60]
[312731283,1706189515896,-2084.04979506,0.000666,60]
[312731284,1706189515908,-303.22,0.000666,60]
[312731285,1706189515919,-4483.63796419,0.000666,60]
[312731286,1706189516764,-641.90907799,0.00053424,31]
[312731287,1706189516777,-806.41092201,0.00053424,31]
[312731288,1706189516786,-704.78820017,0.000666,60]
[312731289,1706189516798,-8601.49928787,0.000666,60]
[312731290,1706189516814,-2306.89,0.0005041,31]
[312731291,1706189516823,-250680.25358786,0.000666,60]
[312731292,1706189516835,-808.88975251,0.000666,60]
[312731293,1706189516851,-726.71,0.00050958,31]
[312731294,1706189516861,-1986.2518369,0.000666,60]
[312731295,1706189516878,-1468.49131176,0.000666,60]
[312731296,1706189516890,-3218.92781318,0.000666,60]
[312731297,1706189516907,-469.89491661,0.00049315,31]
[312731298,1706189516919,-30.10508339,0.00049315,31]
[312731299,1706189516929,-595.05472406,0.000666,60]
[312731300,1706189516940,-3637.73846599,0.000666,60]
[312731301,1706189516952,-1296.72635808,0.000666,60]
[312731302,1706189516964,-9339.81281685,0.000666,60]
[312731303,1706189516976,-15975.86787418,0.000666,60]
[312731304,1706189516988,-9213.35547089,0.000666,60]
[312731305,1706189517000,-42429.40191547,0.000666,60]
[312731306,1706189517012,-64216.39130482,0.000666,60]
[312731307,1706189517023,-7015.48019876,0.000666,60]
[312731308,1706189517040,-264.30000001,0.00053698,31]
[312731335,1706190332111,-500.0,0.00029901,2]
[312731336,1706190332133,-504.63300092,0.00029902,2]
[312731337,1706190332152,-155.0,0.00029903,2]
[312731338,1706190332172,-327.72615975,0.00029903,2]
[312731339,1706190332193,-200.0,0.00029904,2]
[312731340,1706190332212,-1262.37262765,0.00029999,2]
[312731341,1706190332234,-155.0,0.0003,2]
[312731342,1706190332258,-6140.03736029,0.00030895,4]
[312731343,1706190332279,-437.64108713,0.00031903,4]
[312731344,1706190332301,-5000.0,0.00035408,3]
[312731345,1706190332321,-1000.0,0.00035409,4]
[312731346,1706190332343,-301.25336037,0.0003541,4]
[312731347,1706190332362,-184.49882217,0.0003541,4]
[312731348,1706190332382,-1050.6092086,0.0003541,14]
[312731349,1706190332404,-697.35894259,0.0003541,15]
[312731350,1706190332425,-174.45102702,0.00035411,4]
[312731351,1706190332445,-13576.71840103,0.00035412,2]
[312731352,1706190430467,-205.0,0.00029904,2]
[312731353,1706190430492,-155.0,0.00035412,2]
[312731354,1706190430519,-500.0,0.00035412,2]
[312731355,1706190430544,-1472.65130728,0.00035412,2]
[312731356,1706190430571,-392.75,0.00035412,2]
[312731357,1706190430598,-150.0,0.00035412,2]
[312731358,1706190430623,-6783.95,0.00035636,2]
[312731359,1706190430653,-1696.08606402,0.00037698,4]
[312731360,1706190430684,-500.0,0.00037698,2]
[312731361,1706190430710,-1000.0,0.00037699,4]
[312731362,1706190430737,-155.0,0.00037699,2]
[312731363,1706190430764,-153.31,0.000377,3]
[312731364,1706190430791,-176.15,0.0003801,2]
[312731365,1706190430819,-1217.70650523,0.00038567,7]
[312731366,1706190430848,-250.0,0.00039153,111]
[312731367,1706190430874,-5000.0,0.0003926,3]
[312731368,1706190430902,-1535.59,0.00039261,120]
[312731369,1706190430928,-1000.0,0.00039307,2]
[312731370,1706190430954,-906.75,0.00039371,2]
[312731371,1706190430982,-161.36,0.00039427,2]
[312731372,1706190431008,-150.0,0.00039534,2]
[312731373,1706190431035,-170.26,0.00039607,15]
[312731374,1706190431063,-250.21,0.00039627,2]
[312731375,1706190431090,-200.0,0.00039936,21]
[312731376,1706190431116,-161.36,0.00039941,2]
[312731377,1706190431140,-569.5924431,0.0004,4]
[312731378,1706190431169,-373.12,0.00040097,2]
[312731379,1706190431194,-546.05749456,0.00040099,2]
[312731380,1706190431220,-504.19787692,0.00040178,4]
[312731381,1706190431245,-377.5421868,0.00040178,4]
[312731382,1706190431275,-157.46952988,0.00040179,4]
[312731383,1706190431302,-10765.66,0.0004018,2]
[312731384,1706190431329,-161.36,0.00040455,2]
[312731385,1706190431356,-1771.8,0.00040481,120]
[312731386,1706190431388,-150.0,0.0004059,2]
[312731387,1706190431414,-161.36,0.00040968,2]
[312731388,1706190431441,-238.217369,0.0004099,2]
[312731389,1706190431466,-208.504369,0.0004099,2]
[312731390,1706190431491,-164.083198,0.0004099,2]
[312731391,1706190431516,-189.109829,0.0004099,2]
[312731392,1706190431542,-151.0,0.0004099,2]
[312731393,1706190431568,-177.389382,0.0004099,2]
[312731394,1706190431592,-350.413885,0.0004099,2]
[312731395,1706190431617,-271.8,0.0004099,2]
[312731396,1706190431643,-756.682644,0.0004099,2]
[312731397,1706190431668,-616.571124,0.0004099,2]
[312731398,1706190431692,-1015.27508866,0.00041262,2]
[312731399,1706190431716,-34060.2481,0.00041263,2]
[312731400,1706190431897,-178.47,0.00041298,2]
[312731401,1706190431925,-250.0,0.00041298,2]
[312731402,1706190431951,-153.31,0.000413,4]
[312731403,1706190431976,-153.31,0.000413,4]
[312731404,1706190432001,-250.0,0.00041338,2]
[312731405,1706190432027,-471.5,0.00041345,10]
[312731406,1706190432054,-392.91,0.00041345,10]
[312731407,1706190432083,-161.36,0.00041482,2]
[312731408,1706190432109,-200.0,0.00041499,2]
[312731409,1706190432136,-238.217369,0.00041502,30]
[312731410,1706190432161,-350.413885,0.00041502,30]
[312731411,1706190432189,-271.8,0.00041502,30]
[312731412,1706190432214,-756.682644,0.00041502,30]
[312731413,1706190432239,-616.571124,0.00041502,30]
[312731414,1706190432269,-373.12,0.00041601,2]
[312731415,1706190432295,-150.0,0.00041646,2]
[312731416,1706190432322,-250.21,0.00041891,2]
[312731417,1706190432348,-594.39054103,0.00042,4]
[312731418,1706190432373,-1734.1411425,0.00042,30]
[312731419,1706190432399,-840.85262393,0.00042,120]
[312731420,1706190432423,-1257.28099772,0.00042,30]
[312731421,1706190432449,-151.0,0.00042015,30]
[312731422,1706190432475,-238.217369,0.00042015,30]
[312731423,1706190432499,-350.413885,0.00042015,30]
[312731424,1706190432524,-271.8,0.00042015,30]
[312731425,1706190432549,-756.682644,0.00042015,30]
[312731426,1706190432574,-616.571124,0.00042015,30]
[312731427,1706190432599,-150.0,0.00042317,2]
[312731428,1706190432626,-153.81,0.0004235,2]
[312731429,1706190432651,-151.0,0.00042421,30]
[312731430,1706190432676,-271.8,0.00042421,30]
[312731431,1706190432700,-752.59232144,0.000425,10]
[312731432,1706190432726,-238.217369,0.00042527,30]
[312731433,1706190432751,-350.413885,0.00042527,30]
[312731434,1706190432776,-271.8,0.00042527,30]
[312731435,1706190432801,-756.682644,0.00042527,30]
[312731436,1706190432826,-616.571124,0.00042527,30]
[312731437,1706190432851,-150.0,0.00042702,2]
[312731438,1706190432877,-210.19679439,0.00042919,2]
[312731439,1706190432903,-271.8,0.00042952,30]
[312731440,1706190432931,-500.0,0.00043,60]
[312731441,1706190432956,-151.613,0.00043029,30]
[312731442,1706190432984,-750.0,0.00043029,14]
[312731443,1706190433011,-208.504369,0.0004304,30]
[312731444,1706190433038,-151.0,0.0004304,30]
[312731445,1706190433065,-238.217369,0.0004304,30]
[312731446,1706190433089,-350.413885,0.0004304,30]
[312731447,1706190433122,-271.8,0.0004304,30]
[312731448,1706190433148,-756.682644,0.0004304,30]
[312731449,1706190433175,-616.571124,0.0004304,30]
[312731450,1706190433203,-1782.66,0.00043067,5]
[312731451,1706190433230,-373.12,0.00043104,2]
[312731452,1706190433259,-151.0,0.00043482,30]
[312731453,1706190433289,-271.8,0.00043482,30]
[312731454,1706190433318,-150.0,0.00043758,2]
[312731455,1706190433346,-187.5,0.00043835,120]
[312731456,1706190433374,-1592.54670592,0.00044,30]
[312731457,1706190433414,-271.8,0.00044012,30]
[312731458,1706190433446,-250.21,0.00044154,2]
[312731459,1706190433481,-1000.0,0.00044174,15]
[312731460,1706190433511,-1000.0,0.0004422,2]
[312731461,1706190433541,-2774.61992536,0.00044241,2]
[312731462,1706190433571,-420.3224339,0.00044241,4]
[312731463,1706190433605,-153.81,0.00044404,2]
[312731464,1706190433642,-2215.67,0.00044464,2]
[312731465,1706190433676,-151.0,0.00044542,30]
[312731466,1706190433710,-271.8,0.00044542,30]
[312731467,1706190433744,-373.12,0.00044608,2]
[312731468,1706190433775,-150.0,0.00044814,2]
[312731469,1706190433810,-153.31,0.00045,5]
[312731470,1706190433840,-153.31,0.00045,5]
[312731471,1706190434007,-222.22127664,0.00045,17]
[312731472,1706190434036,-416.0,0.00045,2]
[312731473,1706190434064,-1640.592039,0.00045,17]
[312731474,1706190434094,-384.4548,0.0004514,30]
[312731475,1706190434124,-150.0,0.00045428,2]
[312731476,1706190434162,-2000.0,0.0004583,120]
[312731477,1706190434193,-304.18,0.0004583,2]
[312731478,1706190434222,-12122.8,0.0004583,2]
[312731479,1706190434250,-175.79,0.0004583,120]
[312731480,1706190434278,-155.43378467,0.00045854,4]
[312731481,1706190434306,-150.0,0.0004587,2]
[312731482,1706190434332,-528.20128708,0.0004588,100]
[312731483,1706190434360,-150.0,0.00045989,120]
[312731484,1706190434391,-300.0,0.00045989,120]
[312731485,1706190434418,-450.0,0.00045989,120]
[312731486,1706190434446,-554.2233141,0.00046083,2]
[312731487,1706190434474,-1748.00258789,0.00046083,4]
[312731488,1706190434511,-86302.67948412,0.00046083,2]
[312731489,1706190434553,-34152.57092929,0.00046084,4]
[312731490,1706190434581,-155.69386915,0.00046084,4]
[312731491,1706190434608,-1041.63971272,0.00046084,2]
[312731492,1706190434640,-372.59817034,0.00046084,4]
[312731493,1706190434667,-2578.50999999,0.00046085,2]
[312731494,1706190434695,-354.2584703,0.00046085,2]
[312731495,1706190434723,-373.12,0.00046112,2]
[312731496,1706190434752,-250.21,0.00046418,2]
[312731497,1706190434779,-153.81,0.00046459,2]
[312731498,1706190434809,-375.0,0.00046575,120]
[312731499,1706190434836,-625.0,0.000468,3]
[312731500,1706190434866,-500.0,0.00046849,120]
[312731501,1706190434899,-150.0,0.00046926,2]
[312731502,1706190434929,-500.0,0.00047123,120]
[312731503,1706190434959,-1584.82942706,0.00047324,12]
[312731504,1706190434990,-1175.50042208,0.00047341,30]
[312731505,1706190435015,-154.23863763,0.00047359,30]
[312731506,1706190435045,-2391.4165753,0.00047371,16]
[312731507,1706190435073,-347.38836905,0.00047388,30]
[312731508,1706190435103,-500.0,0.00047397,120]
[312731509,1706190435130,-178.47,0.0004741,2]
[312731510,1706190435164,-4393.12227973,0.0004742,20]
[312731511,1706190435192,-572.07246931,0.00047451,30]
[312731512,1706190435220,-162.78049167,0.00047456,30]
[312731513,1706190435248,-155.00526785,0.00047465,30]
[312731514,1706190435278,-153.46651433,0.00047509,30]
[312731515,1706190435305,-153.46651433,0.00047519,30]
[312731516,1706190435338,-153.90506379,0.0004758,30]
[312731517,1706190435364,-572.07246931,0.00047616,30]
[312731518,1706190435397,-153.46651433,0.00047635,30]
[312731519,1706190435424,-500.0,0.00047671,120]
[312731520,1706190435450,-385.99689216,0.00047675,30]
[312731521,1706190435484,-158.9923502,0.0004773,30]
[312731522,1706190435514,-347.38836905,0.00047734,30]
[312731523,1706190435541,-1175.50042208,0.00047738,30]
[312731524,1706190435569,-347.38836905,0.00047773,30]
[312731525,1706190435597,-347.38836905,0.00047776,30]
[312731526,1706190435623,-154.67858104,0.00047785,30]
[312731527,1706190435658,-1175.50042208,0.00047872,30]
[312731528,1706190435685,-156.51295806,0.00047877,30]
[312731529,1706190435711,-153.90506379,0.00047878,30]
[312731530,1706190435737,-151.01696798,0.00047898,30]
[312731531,1706190435762,-154.23863763,0.00047907,30]
[312731532,1706190435787,-151.01696798,0.00047909,30]
[312731533,1706190435812,-155.00526785,0.00047929,30]
[312731534,1706190435837,-151.01696798,0.00047935,30]
[312731535,1706190435863,-162.32786329,0.00047936,30]
[312731536,1706190435896,-500.0,0.00047945,120]
[312731537,1706190435926,-155.00526785,0.00047978,30]
[312731538,1706190435954,-150.0,0.00047982,2]
[312731539,1706190435979,-167.0877099,0.00048071,30]
[312731540,1706190436006,-154.2973801,0.00048081,30]
[312731541,1706190436031,-572.07246931,0.00048102,30]
[312731542,1706190436057,-385.99689216,0.0004821,30]
[312731543,1706190436082,-500.0,0.00048219,120]
[312731544,1706190436272,-155.68396742,0.00048283,30]
[312731545,1706190436297,-151.01696798,0.00048293,30]
[312731546,1706190436322,-158.64926303,0.00048316,30]
[312731547,1706190436347,-21087.0,0.00048334,30]
[312731548,1706190436373,-385.99689216,0.00048377,30]
[312731549,1706190436401,-171.00776203,0.00048419,30]
[312731550,1706190436426,-155.68396742,0.00048423,30]
[312731551,1706190436451,-156.51295806,0.00048458,30]
[312731552,1706190436476,-153.81,0.00048514,2]
[312731553,1706190436502,-158.64926303,0.00048587,30]
[312731554,1706190436527,-153.31,0.000486,6]
[312731555,1706190436553,-153.31,0.000486,6]
[312731556,1706190436591,-347.38836905,0.00048619,30]
[312731557,1706190436621,-572.07246931,0.0004863,30]
[312731558,1706190436651,-167.98831499,0.00048639,30]
[312731559,1706190436679,-347.38836905,0.00048644,30]
[312731560,1706190436707,-158.9923502,0.00048659,30]
[312731561,1706190436735,-250.21,0.00048682,2]
[312731562,1706190436762,-156.51295806,0.00048781,30]
[312731563,1706190436789,-1175.50042208,0.00048781,30]
[312731564,1706190436817,-153.90506379,0.0004879,30]
[312731565,1706190436843,-155.00526785,0.0004881,30]
[312731566,1706190436870,-162.32786329,0.00048822,30]
[312731567,1706190436897,-1175.50042208,0.00048846,30]
[312731568,1706190436928,-347.38836905,0.00048866,30]
[312731569,1706190436956,-572.07246931,0.00048923,30]
[312731570,1706190436983,-4765.09579908,0.00048926,2]
[312731571,1706190437013,-153.46651433,0.00048952,30]
[312731572,1706190437039,-156.5932141,0.00048968,30]
[312731573,1706190437066,-155.68396742,0.00048997,30]
[312731574,1706190437092,-556.80116165,0.00049,30]
[312731575,1706190437120,-156.5932141,0.00049026,30]
[312731576,1706190437148,-347.38836905,0.0004903,30]
[312731577,1706190437175,-150.0,0.00049038,2]
[312731578,1706190437201,-1175.50042208,0.00049056,30]
[312731579,1706190437228,-385.99689216,0.0004907,30]
[312731580,1706190437256,-155.00526785,0.00049075,30]
[312731581,1706190437283,-385.99689216,0.00049096,30]
[312731582,1706190437309,-158.64926303,0.00049102,30]
[312731583,1706190437336,-1000.0,0.00049133,2]
[312731584,1706190437369,-155.00526785,0.00049141,30]
[312731585,1706190437400,-153.90506379,0.00049174,30]
[312731586,1706190437427,-607.37885062,0.00049215,14]
[312731587,1706190437452,-16495.3425,0.00049215,2]
[312731588,1706190437478,-2827.7771,0.00049215,2]
[312731589,1706190437503,-5000.0,0.00049215,7]
[312731590,1706190437529,-167.41982618,0.00049242,30]
[312731591,1706190437555,-385.99689216,0.00049263,30]
[312731592,1706190437581,-4765.09579907,0.00049272,2]
[312731593,1706190437607,-97520.4935523,0.00049305,11]
[312731594,1706190437632,-184.95016325,0.00049312,2]
[312731595,1706190437659,-8050.4688,0.00049313,2]
[312731596,1706190437685,-12513.00514135,0.00049314,4]
[312731597,1706190437712,-1175.50042208,0.00049314,30]
[312731598,1706190437737,-500.0,0.00049315,31]
[312731599,1706190437766,-500.0,0.00049315,31]
[312731600,1706190437791,-500.0,0.00049315,31]
[312731601,1706190437816,-500.0,0.00049315,31]
[312731602,1706190437842,-500.0,0.00049315,31]
[312731603,1706190437869,-500.0,0.00049315,31]
[312731604,1706190437896,-500.0,0.00049315,31]
[312731605,1706190437924,-515.02128904,0.00049315,31]
[312731606,1706190437951,-500.0,0.00049315,31]
[312731607,1706190437978,-500.0,0.00049315,31]
[312731608,1706190438003,-500.0,0.00049315,31]
[312731609,1706190438030,-500.0,0.00049315,31]
[312731610,1706190438055,-500.0,0.00049315,31]
[312731611,1706190438080,-500.0,0.00049315,31]
[312731612,1706190438105,-500.0,0.00049315,31]
[312731613,1706190438131,-1648.25036454,0.00049315,120]
[312731614,1706190438159,-500.0,0.00049315,31]
[312731615,1706190438186,-500.0,0.00049315,31]
[312731616,1706190438348,-500.0,0.00049315,31]
[312731617,1706190438377,-500.0,0.00049315,31]
[312731618,1706190438406,-500.0,0.00049315,31]
[312731619,1706190438431,-500.0,0.00049315,31]
[312731620,1706190438455,-500.0,0.00049315,31]
[312731621,1706190438479,-500.0,0.00049315,31]
[312731622,1706190438503,-500.0,0.00049315,31]
[312731623,1706190438528,-500.0,0.00049315,31]
[312731624,1706190438552,-500.0,0.00049315,31]
[312731625,1706190438577,-500.0,0.00049315,31]
[312731626,1706190438602,-500.0,0.00049315,31]
[312731627,1706190438627,-500.0,0.00049315,31]
[312731628,1706190438656,-500.0,0.00049315,31]
[312731629,1706190438681,-500.0,0.00049315,31]
[312731630,1706190438705,-500.0,0.00049315,31]
[312731631,1706190438730,-500.0,0.00049315,31]
[312731632,1706190438756,-500.0,0.00049315,31]
[312731633,1706190438783,-500.0,0.00049315,31]
[312731634,1706190438808,-500.0,0.00049315,31]
[312731635,1706190438832,-500.0,0.00049315,31]
[312731636,1706190438858,-345.27240293,0.00049315,31]
[312731637,1706190438887,-500.0,0.00049315,31]
[312731638,1706190438916,-1219.75,0.00049315,31]
[312731639,1706190438941,-607.34837023,0.00049315,31]
[312731640,1706190438967,-500.0,0.00049315,31]
[312731641,1706190438991,-500.0,0.00049315,31]
[312731642,1706190439016,-517.34050522,0.00049315,31]
[312731643,1706190439041,-593.34085482,0.00049315,31]
[312731644,1706190439067,-500.0,0.00049315,31]
[312731645,1706190439091,-500.0,0.00049315,31]
[312731646,1706190439117,-500.0,0.00049315,31]
[312731647,1706190439144,-1932.44,0.00049315,31]
[312731648,1706190439169,-500.0,0.00049315,31]
[312731649,1706190439193,-500.0,0.00049315,31]
[312731650,1706190439218,-505.7,0.00049315,31]
[312731651,1706190439242,-500.0,0.00049315,31]
[312731652,1706190439266,-513.38438271,0.00049315,31]
[312731653,1706190439290,-500.0,0.00049315,31]
[312731654,1706190439314,-511.67030226,0.00049315,31]
[312731655,1706190439337,-628.35,0.00049315,20]
[312731656,1706190439361,-500.0,0.00049315,31]
[312731657,1706190439385,-500.0,0.00049315,31]
[312731658,1706190439412,-455.56969479,0.00049315,7]
[312731659,1706190439438,-504.64219104,0.00049315,31]
[312731660,1706190439464,-595.99177389,0.00049315,31]
[312731661,1706190439489,-507.02546287,0.00049315,31]
[312731662,1706190439513,-500.0,0.00049315,31]
[312731663,1706190439540,-515.02087153,0.00049315,31]
[312731664,1706190439564,-500.0,0.00049315,31]
[312731665,1706190439589,-500.0,0.00049315,31]
[312731666,1706190439613,-500.0,0.00049315,31]
[312731667,1706190439638,-512.69832684,0.00049315,31]
[312731668,1706190439665,-1072.8,0.00049315,2]
[312731669,1706190439690,-500.0,0.00049315,31]
[312731670,1706190439715,-500.0,0.00049315,31]
[312731671,1706190439742,-500.0,0.00049315,31]
[312731672,1706190439766,-500.0,0.00049315,31]
[312731673,1706190439791,-500.0,0.00049315,31]
[312731674,1706190439816,-500.0,0.00049315,31]
[312731675,1706190439841,-500.0,0.00049315,31]
[312731676,1706190439866,-500.0,0.00049315,31]
[312731677,1706190439894,-500.0,0.00049315,31]
[312731678,1706190439920,-500.0,0.00049315,31]
[312731679,1706190439947,-500.0,0.00049315,31]
[312731680,1706190439978,-495.0,0.00049315,31]
[312731681,1706190440004,-500.0,0.00049315,31]
[312731682,1706190440031,-500.0,0.00049315,31]
[312731683,1706190440058,-500.0,0.00049315,31]
[312731684,1706190440084,-500.0,0.00049315,31]
[312731685,1706190440110,-500.0,0.00049315,31]
[312731686,1706190440138,-500.0,0.00049315,31]
[312731687,1706190440167,-500.0,0.00049315,31]
[312731688,1706190440193,-500.0,0.00049315,31]
[312731689,1706190440220,-500.0,0.00049315,31]
[312731690,1706190440376,-500.0,0.00049315,31]
[312731691,1706190440407,-500.0,0.00049315,31]
[312731692,1706190440435,-500.0,0.00049315,31]
[312731693,1706190440463,-500.0,0.00049315,31]
[312731694,1706190440491,-500.0,0.00049315,31]
[312731695,1706190440517,-500.0,0.00049315,31]
[312731696,1706190440543,-500.0,0.00049315,20]
[312731697,1706190440571,-500.0,0.00049315,31]
[312731698,1706190440598,-500.0,0.00049315,31]
[312731699,1706190440630,-500.0,0.00049315,31]
[312731700,1706190440661,-893.0,0.00049315,2]
[312731701,1706190440688,-500.0,0.00049315,31]
[312731702,1706190440716,-544.19,0.00049315,31]
[312731703,1706190440743,-500.0,0.00049315,31]
[312731704,1706190440769,-500.0,0.00049315,31]
[312731705,1706190440795,-500.0,0.00049315,31]
[312731706,1706190440820,-500.0,0.00049315,31]
[312731707,1706190440847,-226.18218484,0.00049315,31]
[312731708,1706190440873,-500.0,0.00049315,31]
[312731709,1706190440904,-500.0,0.00049315,31]
[312731710,1706190440933,-500.0,0.00049315,31]
[312731711,1706190440960,-500.0,0.00049315,31]
[312731712,1706190440986,-500.0,0.00049315,31]
[312731713,1706190441015,-500.0,0.00049315,31]
[312731714,1706190441041,-500.0,0.00049315,31]
[312731715,1706190441067,-500.0,0.00049315,31]
[312731716,1706190441093,-500.0,0.00049315,31]
[312731717,1706190441119,-500.0,0.00049315,31]
[312731718,1706190441151,-500.0,0.00049315,31]
[312731719,1706190441177,-547.56877387,0.00049315,31]
[312731720,1706190441204,-500.0,0.00049315,2]
[312731721,1706190441230,-500.0,0.00049315,31]
[312731722,1706190441255,-500.0,0.00049315,31]
[312731723,1706190441281,-500.0,0.00049315,31]
[312731724,1706190441308,-500.0,0.00049315,31]
[312731725,1706190441334,-500.0,0.00049315,31]
[312731726,1706190441361,-500.0,0.00049315,31]
[312731727,1706190441395,-500.0,0.00049315,31]
[312731728,1706190441422,-500.0,0.00049315,31]
[312731729,1706190441451,-407.45518831,0.00049315,31]
[312731730,1706190441477,-500.0,0.00049315,31]
[312731731,1706190441503,-500.0,0.00049315,31]
[312731732,1706190441528,-500.0,0.00049315,31]
[312731733,1706190441554,-500.0,0.00049315,31]
[312731734,1706190441581,-500.0,0.00049315,31]
[312731735,1706190441607,-500.0,0.00049315,31]
[312731736,1706190441633,-500.0,0.00049315,31]
[312731737,1706190441661,-500.0,0.00049315,31]
[312731738,1706190441686,-152.15484772,0.00049315,31]
[312731739,1706190441711,-1000.0,0.00049315,2]
[312731740,1706190441735,-500.0,0.00049315,31]
[312731741,1706190441759,-500.0,0.00049315,31]
[312731742,1706190441784,-500.0,0.00049315,31]
[312731743,1706190441808,-500.0,0.00049315,31]
[312731744,1706190441832,-500.0,0.00049315,31]
[312731745,1706190441861,-500.0,0.00049315,31]
[312731746,1706190441885,-500.0,0.00049315,31]
[312731747,1706190441914,-500.0,0.00049315,31]
[312731748,1706190441939,-500.0,0.00049315,31]
[312731749,1706190441964,-500.0,0.00049315,31]
[312731750,1706190441988,-500.0,0.00049315,31]
[312731751,1706190442015,-500.0,0.00049315,31]